[Event "Live Chess"]
[Site "Chess.com"]
[Date "2024.06.02"]
[Round "-"]
[White "juniortay"]
[Black "JohanKjeldahl"]
[Result "1-0"]
[WhiteElo "2363"]
[BlackElo "1795"]
[TimeControl "300"]
[EndTime "4:11:18 PDT"]
[Termination "juniortay won by resignation"]

1. e4 {[%clk 0:04:57.1]} 1... Nc6 {[%clk 0:04:57.9]} 2. Nf3 {[%clk 0:04:55.8]}
2... e5 {[%clk 0:04:56]} 3. d4 {[%clk 0:04:55.1]} 3... exd4 {[%clk 0:04:51.1]}
4. Nxd4 {[%clk 0:04:55]} 4... Nf6 {[%clk 0:04:49.3]} 5. Nxc6 {[%clk 0:04:53.7]}
5... bxc6 {[%clk 0:04:45.7]} 6. Bd3 {[%clk 0:04:53.6]} 6... Bd6 {[%clk
0:04:43.2]} 7. O-O {[%clk 0:04:52.2]} 7... O-O {[%clk 0:04:41.9]} 8. Bg5 {[%clk
0:04:48.9]} 8... h6 {[%clk 0:04:39.5]} 9. Bh4 {[%clk 0:04:47.6]} 9... Be7 {[%clk
0:04:38.3]} 10. Nc3 {[%clk 0:04:46.1]} 10... Rb8 {[%clk 0:04:35.7]} 11. b3
{[%clk 0:04:44]} 11... d5 {[%clk 0:04:33.1]} 12. exd5 {[%clk 0:04:39.2]} 12...
cxd5 {[%clk 0:04:29.9]} 13. h3 {[%clk 0:04:37.4]} 13... c6 {[%clk 0:04:22.7]}
14. Qf3 {[%clk 0:04:35.7]} 14... Be6 {[%clk 0:04:14.8]} 15. Ne2 {[%clk
0:04:29.3]} 15... Rb4 {[%clk 0:04:11.8]} 16. Bg3 {[%clk 0:04:24.7]} 16... Ne4
{[%clk 0:04:09.2]} 17. c3 {[%clk 0:04:17.1]} 17... Nd2 {[%clk 0:04:01.1]} 18.
Qh5 {[%clk 0:04:12.5]} 18... Nxf1 {[%clk 0:03:58.3]} 19. cxb4 {[%clk 0:04:10.3]}
19... Nxg3 {[%clk 0:03:56.6]} 20. Nxg3 {[%clk 0:04:07.7]} 20... Bg5 {[%clk
0:03:51.2]} 21. Re1 {[%clk 0:03:51.1]} 21... Qf6 {[%clk 0:03:47.7]} 22. Re2
{[%clk 0:03:45.6]} 22... Rb8 {[%clk 0:03:39.2]} 23. a3 {[%clk 0:03:44.3]} 23...
Qa1+ {[%clk 0:03:30.4]} 24. Kh2 {[%clk 0:03:43]} 24... Qc3 {[%clk 0:03:27.3]}
25. Bc2 {[%clk 0:03:36.1]} 25... d4 {[%clk 0:03:23.4]} 26. Ne4 {[%clk
0:03:30.9]} 26... Qa1 {[%clk 0:03:17.3]} 27. Nxg5 {[%clk 0:03:29.6]} 27... hxg5
{[%clk 0:03:02.8]} 28. Qh7+ {[%clk 0:03:00]} 28... Kf8 {[%clk 0:03:01.6]} 29.
Qh8+ {[%clk 0:02:59]} 1-0

[Event "Live Chess"]
[Site "Chess.com"]
[Date "2024.06.02"]
[Round "-"]
[White "MagnersCarlsberg2870"]
[Black "Hoogleboogle"]
[Result "1-0"]
[WhiteElo "1782"]
[BlackElo "1339"]
[TimeControl "300"]
[EndTime "4:11:46 PDT"]
[Termination "MagnersCarlsberg2870 won by checkmate"]

1. d4 {[%clk 0:04:57.7]} 1... Nf6 {[%clk 0:04:57.7]} 2. Nf3 {[%clk 0:04:56.6]}
2... e6 {[%clk 0:04:55.2]} 3. e3 {[%clk 0:04:55.6]} 3... d5 {[%clk 0:04:53.7]}
4. Bd3 {[%clk 0:04:54.5]} 4... c5 {[%clk 0:04:48.9]} 5. c3 {[%clk 0:04:53.1]}
5... c4 {[%clk 0:04:47.2]} 6. Bc2 {[%clk 0:04:51.7]} 6... Nc6 {[%clk 0:04:44.9]}
7. Nbd2 {[%clk 0:04:50.4]} 7... Bd6 {[%clk 0:04:40.3]} 8. Qe2 {[%clk 0:04:48.2]}
8... Bd7 {[%clk 0:04:37.2]} 9. O-O {[%clk 0:04:47]} 9... O-O {[%clk 0:04:35.6]}
10. e4 {[%clk 0:04:46.2]} 10... dxe4 {[%clk 0:04:21]} 11. Nxe4 {[%clk
0:04:42.5]} 11... b5 {[%clk 0:04:15]} 12. Nxf6+ {[%clk 0:04:40.9]} 12... Qxf6
{[%clk 0:04:10.9]} 13. Bg5 {[%clk 0:04:38.6]} 13... Qxg5 {[%clk 0:03:50.3]} 14.
Nxg5 {[%clk 0:04:37.1]} 14... b4 {[%clk 0:03:41.1]} 15. Bxh7+ {[%clk 0:04:34.8]}
15... Kh8 {[%clk 0:03:38.2]} 16. Qh5 {[%clk 0:04:32]} 16... g6 {[%clk
0:03:33.2]} 17. Bxg6+ {[%clk 0:04:30.7]} 17... Kg7 {[%clk 0:03:30.5]} 18. Qh7+
{[%clk 0:04:21.2]} 18... Kf6 {[%clk 0:03:23.1]} 19. Ne4+ {[%clk 0:04:19.8]}
19... Ke7 {[%clk 0:03:20.1]} 20. Qh4+ {[%clk 0:04:16.4]} 20... Ke8 {[%clk
0:03:18]} 21. Nxd6# {[%clk 0:04:13.9]} 1-0

[Event "Live Chess"]
[Site "Chess.com"]
[Date "2024.06.02"]
[Round "-"]
[White "MaksymYurii"]
[Black "NeilDruggan73"]
[Result "0-1"]
[WhiteElo "999"]
[BlackElo "1691"]
[TimeControl "300"]
[EndTime "4:11:51 PDT"]
[Termination "NeilDruggan73 won by checkmate"]

1. e4 {[%clk 0:04:58.7]} 1... d6 {[%clk 0:04:57.8]} 2. Nf3 {[%clk 0:04:57.8]}
2... Nf6 {[%clk 0:04:56.6]} 3. Bc4 {[%clk 0:04:56.9]} 3... g6 {[%clk 0:04:37.8]}
4. b3 {[%clk 0:04:53.3]} 4... Bg7 {[%clk 0:04:35.1]} 5. Nc3 {[%clk 0:04:52.4]}
5... O-O {[%clk 0:04:32.4]} 6. Bb2 {[%clk 0:04:51.5]} 6... c6 {[%clk 0:04:31.4]}
7. Ng5 {[%clk 0:04:50]} 7... b5 {[%clk 0:04:29.7]} 8. Bxf7+ {[%clk 0:04:36.9]}
8... Rxf7 {[%clk 0:04:27]} 9. Nxf7 {[%clk 0:04:35.8]} 9... Kxf7 {[%clk 0:04:26]}
10. O-O {[%clk 0:04:29.9]} 10... Qb6 {[%clk 0:04:24.3]} 11. Re1 {[%clk
0:04:27.8]} 11... Bg4 {[%clk 0:04:17.4]} 12. Qc1 {[%clk 0:04:20.1]} 12... Nbd7
{[%clk 0:04:16.8]} 13. h3 {[%clk 0:04:14.2]} 13... Be6 {[%clk 0:04:14.1]} 14. e5
{[%clk 0:03:57.6]} 14... Nxe5 {[%clk 0:04:10.9]} 15. Ne4 {[%clk 0:03:47.3]}
15... Nxe4 {[%clk 0:04:04.5]} 16. Rxe4 {[%clk 0:03:46]} 16... Bd5 {[%clk
0:04:02.9]} 17. Rf4+ {[%clk 0:03:42]} 17... Ke6 {[%clk 0:04:00.7]} 18. d4 {[%clk
0:03:38.4]} 18... g5 {[%clk 0:03:57.1]} 19. dxe5 {[%clk 0:03:29.9]} 19... gxf4
{[%clk 0:03:55.2]} 20. Qxf4 {[%clk 0:03:24.8]} 20... Bxe5 {[%clk 0:03:52.8]} 21.
Qh6+ {[%clk 0:03:11.3]} 21... Kd7 {[%clk 0:03:47.7]} 22. Bxe5 {[%clk 0:03:06.9]}
22... dxe5 {[%clk 0:03:45.5]} 23. Re1 {[%clk 0:02:59]} 23... Rg8 {[%clk
0:03:31.3]} 24. g3 {[%clk 0:02:53.3]} 24... Rxg3+ {[%clk 0:03:29.1]} 25. Kf1
{[%clk 0:02:48.7]} 25... Rf3 {[%clk 0:03:12.5]} 26. Re2 {[%clk 0:02:38.5]} 26...
Qd4 {[%clk 0:03:05.2]} 27. Qxh7 {[%clk 0:02:21.2]} 27... Qd1+ {[%clk 0:02:53.2]}
28. Re1 {[%clk 0:02:15.7]} 28... Qd4 {[%clk 0:02:50.8]} 29. Re2 {[%clk
0:02:13.6]} 29... Be6 {[%clk 0:02:25.3]} 30. Ke1 {[%clk 0:01:42.6]} 30... Rxh3
{[%clk 0:02:18.8]} 31. Qxh3 {[%clk 0:01:28.6]} 31... Bxh3 {[%clk 0:02:15.2]} 32.
Rd2 {[%clk 0:01:27.2]} 32... Qxd2+ {[%clk 0:02:13.3]} 33. Kxd2 {[%clk
0:01:26.1]} 33... Kd6 {[%clk 0:02:12.9]} 34. Ke3 {[%clk 0:01:25.2]} 34... Kd5
{[%clk 0:02:10.9]} 35. c3 {[%clk 0:01:23.6]} 35... Bg2 {[%clk 0:02:05.2]} 36. a3
{[%clk 0:01:14.9]} 36... a5 {[%clk 0:02:03.7]} 37. f3 {[%clk 0:01:10.4]} 37...
e6 {[%clk 0:02:01.2]} 38. Kf2 {[%clk 0:01:07.8]} 38... Bh3 {[%clk 0:01:59.9]}
39. Kg3 {[%clk 0:01:06.2]} 39... Bf5 {[%clk 0:01:58.7]} 40. Kf2 {[%clk
0:01:04.3]} 40... b4 {[%clk 0:01:55.7]} 41. cxb4 {[%clk 0:00:58.2]} 41... axb4
{[%clk 0:01:53.9]} 42. a4 {[%clk 0:00:55.7]} 42... Kd4 {[%clk 0:01:46.1]} 43.
Ke2 {[%clk 0:00:52.3]} 43... Kc3 {[%clk 0:01:41.4]} 44. Ke3 {[%clk 0:00:45.6]}
44... Bd3 {[%clk 0:01:28.7]} 45. f4 {[%clk 0:00:29]} 45... exf4+ {[%clk
0:01:24.5]} 46. Kxf4 {[%clk 0:00:28.1]} 46... Kxb3 {[%clk 0:01:23.7]} 47. Ke3
{[%clk 0:00:27.4]} 47... Kc3 {[%clk 0:01:21.9]} 48. Kf4 {[%clk 0:00:22.5]} 48...
b3 {[%clk 0:01:18.9]} 49. Ke5 {[%clk 0:00:18.5]} 49... b2 {[%clk 0:01:16.5]} 50.
Kxe6 {[%clk 0:00:18.4]} 50... b1=Q {[%clk 0:01:15.1]} 51. Kd6 {[%clk 0:00:18.3]}
51... Be4 {[%clk 0:01:11.3]} 52. Kc5 {[%clk 0:00:17]} 52... Qb4# {[%clk
0:01:08.7]} 0-1

[Event "Live Chess"]
[Site "Chess.com"]
[Date "2024.06.02"]
[Round "-"]
[White "Dhaydon19"]
[Black "WeakOldFinished"]
[Result "1-0"]
[WhiteElo "2644"]
[BlackElo "2176"]
[TimeControl "300"]
[EndTime "4:12:06 PDT"]
[Termination "Dhaydon19 won - game abandoned"]

1. d3 {[%clk 0:04:58.1]} 1... Nf6 {[%clk 0:04:52.5]} 2. Nf3 {[%clk 0:04:57.6]}
2... g6 {[%clk 0:04:50.7]} 3. g3 {[%clk 0:04:57.2]} 3... Bg7 {[%clk 0:04:49.6]}
4. Bg2 {[%clk 0:04:56.9]} 4... O-O {[%clk 0:04:49]} 5. O-O {[%clk 0:04:56.5]}
5... d5 {[%clk 0:04:48.2]} 6. c3 {[%clk 0:04:56.2]} 6... c5 {[%clk 0:04:47.2]}
7. Nbd2 {[%clk 0:04:55.9]} 7... Nc6 {[%clk 0:04:45.6]} 8. Qc2 {[%clk 0:04:55.6]}
8... h6 {[%clk 0:04:44.1]} 9. e4 {[%clk 0:04:54.7]} 9... Be6 {[%clk 0:04:40.3]}
10. Re1 {[%clk 0:04:53.5]} 10... Qd7 {[%clk 0:04:30]} 11. exd5 {[%clk
0:04:50.4]} 11... Nxd5 {[%clk 0:04:28.4]} 12. Nc4 {[%clk 0:04:48.8]} 12... Rad8
{[%clk 0:04:18.8]} 13. Nce5 {[%clk 0:04:46.4]} 13... Nxe5 {[%clk 0:04:17.6]} 14.
Nxe5 {[%clk 0:04:46]} 14... Qc7 {[%clk 0:04:16.7]} 15. Nxg6 {[%clk 0:04:43.9]}
15... fxg6 {[%clk 0:04:08.4]} 16. Rxe6 {[%clk 0:04:41.6]} 1-0

[Event "Live Chess"]
[Site "Chess.com"]
[Date "2024.06.02"]
[Round "-"]
[White "Andriy_Yaremovych"]
[Black "elis06"]
[Result "0-1"]
[WhiteElo "1601"]
[BlackElo "2323"]
[TimeControl "300"]
[EndTime "4:12:26 PDT"]
[Termination "elis06 won by resignation"]

1. e4 {[%clk 0:04:58.4]} 1... c6 {[%clk 0:04:58.9]} 2. Nc3 {[%clk 0:04:58.1]}
2... d5 {[%clk 0:04:58.2]} 3. exd5 {[%clk 0:04:58]} 3... cxd5 {[%clk 0:04:57.6]}
4. d4 {[%clk 0:04:57.9]} 4... Nf6 {[%clk 0:04:56.8]} 5. f4 {[%clk 0:04:57.8]}
5... Nc6 {[%clk 0:04:56.1]} 6. Nf3 {[%clk 0:04:57.7]} 6... Bg4 {[%clk
0:04:55.4]} 7. Bb5 {[%clk 0:04:57.6]} 7... e6 {[%clk 0:04:54.4]} 8. Bxc6+ {[%clk
0:04:56.1]} 8... bxc6 {[%clk 0:04:53.6]} 9. O-O {[%clk 0:04:56]} 9... Bd6 {[%clk
0:04:53.1]} 10. Qd3 {[%clk 0:04:54.8]} 10... O-O {[%clk 0:04:51.5]} 11. Ne5
{[%clk 0:04:53.8]} 11... c5 {[%clk 0:04:49.2]} 12. dxc5 {[%clk 0:04:51.6]} 12...
Bxc5+ {[%clk 0:04:48.2]} 13. Kh1 {[%clk 0:04:50.5]} 13... Bf5 {[%clk 0:04:44.7]}
14. Qg3 {[%clk 0:04:48.7]} 14... Bxc2 {[%clk 0:04:39.9]} 15. h3 {[%clk
0:04:46.5]} 15... Bg6 {[%clk 0:04:37.8]} 16. Nxg6 {[%clk 0:04:37.5]} 16... hxg6
{[%clk 0:04:37.7]} 17. Ne2 {[%clk 0:04:31.3]} 17... Nh5 {[%clk 0:04:36]} 18. Qg4
{[%clk 0:04:29.2]} 18... Rc8 {[%clk 0:04:34.1]} 19. Ng3 {[%clk 0:04:25.4]} 19...
Nxg3+ {[%clk 0:04:32.7]} 20. Qxg3 {[%clk 0:04:25.3]} 20... Bb6 {[%clk
0:04:30.7]} 21. a3 {[%clk 0:04:19.2]} 21... Qf6 {[%clk 0:04:28.4]} 22. Rb1
{[%clk 0:04:15.4]} 22... Rc2 {[%clk 0:04:24.5]} 23. b4 {[%clk 0:04:13.7]} 23...
Rfc8 {[%clk 0:04:23.4]} 24. Be3 {[%clk 0:04:09.7]} 24... R2c3 {[%clk 0:04:21.9]}
25. Rf3 {[%clk 0:04:07.7]} 25... d4 {[%clk 0:04:18.7]} 26. Bg1 {[%clk
0:04:05.6]} 26... Rxf3 {[%clk 0:04:14.6]} 27. Qxf3 {[%clk 0:04:03.8]} 27... Qf5
{[%clk 0:04:12.2]} 28. Rd1 {[%clk 0:04:01.6]} 28... Qc2 {[%clk 0:04:09.7]} 29.
Rxd4 {[%clk 0:03:56]} 29... Bxd4 {[%clk 0:04:08.4]} 30. Bxd4 {[%clk 0:03:55.5]}
30... Qc1+ {[%clk 0:04:05.9]} 31. Kh2 {[%clk 0:03:54.1]} 31... Qc6 {[%clk
0:04:03.1]} 32. Qe3 {[%clk 0:03:50.1]} 32... a6 {[%clk 0:04:01.6]} 33. Bc5
{[%clk 0:03:48.3]} 33... Qd5 {[%clk 0:03:58.5]} 34. h4 {[%clk 0:03:43.3]} 34...
a5 {[%clk 0:03:56.8]} 35. g4 {[%clk 0:03:31.6]} 35... axb4 {[%clk 0:03:54.8]}
36. axb4 {[%clk 0:03:30.1]} 36... Ra8 {[%clk 0:03:52]} 37. Kg3 {[%clk
0:03:24.4]} 37... Ra2 {[%clk 0:03:48.7]} 38. f5 {[%clk 0:03:21]} 38... gxf5
{[%clk 0:03:42.6]} 39. gxf5 {[%clk 0:03:19.7]} 39... Qxf5 {[%clk 0:03:30.8]} 0-1

[Event "Live Chess"]
[Site "Chess.com"]
[Date "2024.06.02"]
[Round "-"]
[White "elephantgerrald"]
[Black "Ninifu"]
[Result "0-1"]
[WhiteElo "856"]
[BlackElo "2007"]
[TimeControl "300"]
[EndTime "4:12:28 PDT"]
[Termination "Ninifu won by checkmate"]

1. e4 {[%clk 0:04:57.9]} 1... d5 {[%clk 0:04:56.4]} 2. f3 {[%clk 0:04:50.3]}
2... e5 {[%clk 0:04:51]} 3. Nc3 {[%clk 0:04:47]} 3... Nf6 {[%clk 0:04:45]} 4.
exd5 {[%clk 0:04:44.4]} 4... Nxd5 {[%clk 0:04:43]} 5. Bc4 {[%clk 0:04:38.9]}
5... Be6 {[%clk 0:04:38.9]} 6. d3 {[%clk 0:04:25.2]} 6... Nc6 {[%clk 0:04:36.5]}
7. Qe2 {[%clk 0:04:18.2]} 7... Bc5 {[%clk 0:04:28.6]} 8. Nh3 {[%clk 0:04:14.4]}
8... Nxc3 {[%clk 0:04:16.3]} 9. bxc3 {[%clk 0:04:10.3]} 9... Bxc4 {[%clk
0:03:59.5]} 10. dxc4 {[%clk 0:04:08.8]} 10... O-O {[%clk 0:03:58.2]} 11. Qe4
{[%clk 0:04:03.1]} 11... Qd6 {[%clk 0:03:35.4]} 12. Ng5 {[%clk 0:03:42.9]} 12...
g6 {[%clk 0:03:32.8]} 13. Be3 {[%clk 0:03:29.4]} 13... Rad8 {[%clk 0:03:26.5]}
14. O-O {[%clk 0:03:22.1]} 14... f5 {[%clk 0:03:18.5]} 15. Qh4 {[%clk
0:03:19.8]} 15... Bxe3+ {[%clk 0:03:13.3]} 16. Rf2 {[%clk 0:03:14.6]} 16...
Bxf2+ {[%clk 0:02:59.7]} 17. Kxf2 {[%clk 0:03:13.3]} 17... Rd7 {[%clk
0:02:55.8]} 18. Re1 {[%clk 0:02:56.2]} 18... Qd2+ {[%clk 0:02:47.6]} 19. Re2
{[%clk 0:02:52.9]} 19... Qf4 {[%clk 0:02:46.8]} 20. Qxf4 {[%clk 0:02:43.8]}
20... exf4 {[%clk 0:02:45.4]} 21. Ne6 {[%clk 0:02:39.7]} 21... Re8 {[%clk
0:02:43]} 22. Nxf4 {[%clk 0:02:33.9]} 22... Rxe2+ {[%clk 0:02:41.5]} 23. Nxe2
{[%clk 0:02:32]} 23... Rd2 {[%clk 0:02:32.5]} 24. Ke3 {[%clk 0:02:29.6]} 24...
Rxc2 {[%clk 0:02:31.1]} 25. Kd3 {[%clk 0:02:25.8]} 25... Rxa2 {[%clk 0:02:27.6]}
26. Nf4 {[%clk 0:02:25]} 26... Ne5+ {[%clk 0:02:23.1]} 27. Kd4 {[%clk
0:02:22.6]} 27... Nf7 {[%clk 0:02:13.3]} 28. Ne6 {[%clk 0:02:19.7]} 28... Rxg2
{[%clk 0:02:10.3]} 29. Nxc7 {[%clk 0:02:00]} 29... a5 {[%clk 0:02:09.2]} 30. Nb5
{[%clk 0:01:58.5]} 30... a4 {[%clk 0:02:07]} 31. c5 {[%clk 0:01:57.4]} 31... Rb2
{[%clk 0:01:59.2]} 32. c4 {[%clk 0:01:54.4]} 32... Rb3 {[%clk 0:01:46.9]} 33. c6
{[%clk 0:01:45.8]} 33... bxc6 {[%clk 0:01:44.3]} 34. Nc3 {[%clk 0:01:43]} 34...
a3 {[%clk 0:01:40.9]} 35. Kd3 {[%clk 0:01:40.3]} 35... a2 {[%clk 0:01:38.4]} 36.
Kc2 {[%clk 0:01:36.8]} 36... Rxc3+ {[%clk 0:01:37.2]} 37. Kb2 {[%clk 0:01:34.7]}
37... Ra3 {[%clk 0:01:34.2]} 38. Kxa3 {[%clk 0:01:32.4]} 38... a1=Q+ {[%clk
0:01:32.5]} 39. Kb3 {[%clk 0:01:32.3]} 39... Ne5 {[%clk 0:01:29.9]} 40. Kb4
{[%clk 0:01:31]} 40... Nd3+ {[%clk 0:01:26.3]} 41. Kb3 {[%clk 0:01:28.8]} 41...
Qb2+ {[%clk 0:01:22]} 42. Ka4 {[%clk 0:01:27.5]} 42... Qb4# {[%clk 0:01:20.7]}
0-1

[Event "Live Chess"]
[Site "Chess.com"]
[Date "2024.06.02"]
[Round "-"]
[White "FlyingChessKestrel13"]
[Black "Pablo_dmp"]
[Result "1-0"]
[WhiteElo "2078"]
[BlackElo "1999"]
[TimeControl "300"]
[EndTime "4:12:32 PDT"]
[Termination "FlyingChessKestrel13 won on time"]

1. Nf3 {[%clk 0:04:55.3]} 1... c5 {[%clk 0:04:59.9]} 2. d3 {[%clk 0:04:54.3]}
2... Nf6 {[%clk 0:04:59.8]} 3. g3 {[%clk 0:04:53.4]} 3... d5 {[%clk 0:04:59.7]}
4. Bg2 {[%clk 0:04:47.6]} 4... Nc6 {[%clk 0:04:59.6]} 5. O-O {[%clk 0:04:46]}
5... e5 {[%clk 0:04:59.2]} 6. Bg5 {[%clk 0:04:42.5]} 6... Bd6 {[%clk 0:04:59.1]}
7. e4 {[%clk 0:04:38.5]} 7... d4 {[%clk 0:04:58]} 8. Nbd2 {[%clk 0:04:37.1]}
8... h6 {[%clk 0:04:56.8]} 9. Bxf6 {[%clk 0:04:35.3]} 9... gxf6 {[%clk 0:04:56]}
10. Nc4 {[%clk 0:04:35.1]} 10... Bc7 {[%clk 0:04:54.7]} 11. a4 {[%clk
0:04:33.8]} 11... Be6 {[%clk 0:04:52.7]} 12. b3 {[%clk 0:04:32.7]} 12... Qd7
{[%clk 0:04:51]} 13. a5 {[%clk 0:04:29.4]} 13... h5 {[%clk 0:04:49]} 14. a6
{[%clk 0:04:26]} 14... b5 {[%clk 0:04:46.3]} 15. Na3 {[%clk 0:04:24.1]} 15...
Ne7 {[%clk 0:04:42.9]} 16. Nh4 {[%clk 0:04:18.5]} 16... Rg8 {[%clk 0:04:31.9]}
17. f4 {[%clk 0:04:07.9]} 17... exf4 {[%clk 0:04:28]} 18. gxf4 {[%clk
0:04:02.2]} 18... Bh3 {[%clk 0:04:26.1]} 19. Qf3 {[%clk 0:03:59.9]} 19... Bg4
{[%clk 0:04:23.8]} 20. Qf2 {[%clk 0:03:58.3]} 20... f5 {[%clk 0:04:21]} 21. exf5
{[%clk 0:03:54.8]} 21... Nd5 {[%clk 0:04:16.1]} 22. Nxb5 {[%clk 0:03:49.7]}
22... Bxf4 {[%clk 0:03:23]} 23. Rae1+ {[%clk 0:03:31.5]} 23... Kd8 {[%clk
0:02:47.5]} 24. Kh1 {[%clk 0:03:18.4]} 24... Be3 {[%clk 0:01:55.7]} 25. Qg3
{[%clk 0:03:08]} 25... Rc8 {[%clk 0:01:20.1]} 26. Qd6 {[%clk 0:02:42.7]} 26...
Nf4 {[%clk 0:00:46.7]} 27. Rxf4 {[%clk 0:02:28]} 27... Bxf4 {[%clk 0:00:24.9]}
28. Qf6+ {[%clk 0:02:20.9]} 1-0

[Event "Live Chess"]
[Site "Chess.com"]
[Date "2024.06.02"]
[Round "-"]
[White "f4nomore"]
[Black "Crowded_House"]
[Result "1/2-1/2"]
[WhiteElo "1274"]
[BlackElo "1663"]
[TimeControl "300"]
[EndTime "4:12:36 PDT"]
[Termination "Game drawn by repetition"]

1. c4 {[%clk 0:04:53]} 1... e6 {[%clk 0:04:59.4]} 2. Nc3 {[%clk 0:04:51.2]} 2...
d5 {[%clk 0:04:59.1]} 3. cxd5 {[%clk 0:04:49.4]} 3... exd5 {[%clk 0:04:58]} 4.
d4 {[%clk 0:04:48.1]} 4... c6 {[%clk 0:04:56.2]} 5. e3 {[%clk 0:04:46.8]} 5...
Bd6 {[%clk 0:04:55.6]} 6. Nf3 {[%clk 0:04:45.2]} 6... Ne7 {[%clk 0:04:54.5]} 7.
Be2 {[%clk 0:04:44.1]} 7... Bg4 {[%clk 0:04:53]} 8. O-O {[%clk 0:04:42.5]} 8...
O-O {[%clk 0:04:51.8]} 9. Ne5 {[%clk 0:04:39.2]} 9... Bxe2 {[%clk 0:04:49.6]}
10. Qxe2 {[%clk 0:04:36.8]} 10... Bxe5 {[%clk 0:04:44.9]} 11. dxe5 {[%clk
0:04:34.9]} 11... d4 {[%clk 0:04:35.9]} 12. exd4 {[%clk 0:04:28.1]} 12... Qxd4
{[%clk 0:04:35]} 13. Rd1 {[%clk 0:04:18]} 13... Qb6 {[%clk 0:04:26.8]} 14. Be3
{[%clk 0:04:15.1]} 14... Qc7 {[%clk 0:04:24]} 15. f4 {[%clk 0:04:11.6]} 15...
Nf5 {[%clk 0:04:18]} 16. Bf2 {[%clk 0:04:08.5]} 16... Nd7 {[%clk 0:04:16.5]} 17.
Qd3 {[%clk 0:04:03.4]} 17... Nxe5 {[%clk 0:03:48.8]} 18. Qxf5 {[%clk 0:03:50.9]}
18... Nc4 {[%clk 0:03:42]} 19. b3 {[%clk 0:03:43.9]} 19... Nb6 {[%clk
0:03:38.1]} 20. Bg3 {[%clk 0:03:33.5]} 20... Rfe8 {[%clk 0:03:24.9]} 21. Qg4
{[%clk 0:03:18.2]} 21... Qc8 {[%clk 0:03:04.6]} 22. f5 {[%clk 0:03:12.8]} 22...
Nd7 {[%clk 0:02:54]} 23. Qf3 {[%clk 0:03:03.6]} 23... Nf6 {[%clk 0:02:52.3]} 24.
h3 {[%clk 0:02:53]} 24... Re7 {[%clk 0:02:49.3]} 25. Re1 {[%clk 0:02:43.2]}
25... Qe8 {[%clk 0:02:44.5]} 26. Rxe7 {[%clk 0:02:38.8]} 26... Qxe7 {[%clk
0:02:43.3]} 27. Re1 {[%clk 0:02:37.1]} 27... Qd7 {[%clk 0:02:35.1]} 28. Na4
{[%clk 0:02:29.9]} 28... Qd4+ {[%clk 0:02:26.4]} 29. Bf2 {[%clk 0:02:28.1]}
29... Qd7 {[%clk 0:02:13.2]} 30. Nc5 {[%clk 0:02:22.4]} 30... Qc7 {[%clk
0:02:06.2]} 31. Bg3 {[%clk 0:02:16.1]} 31... Qb6 {[%clk 0:02:02.2]} 32. Bf2
{[%clk 0:02:12.7]} 32... Qc7 {[%clk 0:02:00.6]} 33. Bg3 {[%clk 0:02:09.9]} 33...
Qb6 {[%clk 0:01:59.7]} 34. Bf2 {[%clk 0:02:08.8]} 34... Qc7 {[%clk 0:01:58.7]}
1/2-1/2

[Event "Live Chess"]
[Site "Chess.com"]
[Date "2024.06.02"]
[Round "-"]
[White "r0ad_t0-gm"]
[Black "Victor_Bondar"]
[Result "1-0"]
[WhiteElo "2274"]
[BlackElo "1460"]
[TimeControl "300"]
[EndTime "4:12:48 PDT"]
[Termination "r0ad_t0-gm won on time"]

1. Nf3 {[%clk 0:04:59.1]} 1... Nf6 {[%clk 0:04:56.3]} 2. g3 {[%clk 0:04:58.1]}
2... d5 {[%clk 0:04:46.2]} 3. Bg2 {[%clk 0:04:56.8]} 3... e6 {[%clk 0:04:45.3]}
4. O-O {[%clk 0:04:55.6]} 4... c5 {[%clk 0:04:43.9]} 5. d3 {[%clk 0:04:54.2]}
5... Nc6 {[%clk 0:04:42.8]} 6. Nbd2 {[%clk 0:04:54.1]} 6... a6 {[%clk
0:04:40.8]} 7. e4 {[%clk 0:04:53.7]} 7... Be7 {[%clk 0:04:34.6]} 8. Re1 {[%clk
0:04:52.2]} 8... O-O {[%clk 0:04:32.4]} 9. h4 {[%clk 0:04:41.3]} 9... h6 {[%clk
0:04:30.4]} 10. e5 {[%clk 0:04:37.1]} 10... Nd7 {[%clk 0:04:17.8]} 11. Nf1
{[%clk 0:04:35.7]} 11... f5 {[%clk 0:04:13.5]} 12. exf6 {[%clk 0:04:33.9]} 12...
Nxf6 {[%clk 0:04:12.4]} 13. Ne3 {[%clk 0:04:23]} 13... Bd7 {[%clk 0:04:03.3]}
14. Bh3 {[%clk 0:04:21.4]} 14... e5 {[%clk 0:03:45.9]} 15. Nf5 {[%clk
0:04:12.8]} 15... Nh7 {[%clk 0:03:18.6]} 16. Nxe7+ {[%clk 0:04:04.3]} 16... Qxe7
{[%clk 0:03:17.2]} 17. Bxd7 {[%clk 0:04:04.1]} 17... Qxd7 {[%clk 0:03:14.9]} 18.
Nxe5 {[%clk 0:03:45.3]} 18... Nxe5 {[%clk 0:03:12.1]} 19. Rxe5 {[%clk
0:03:43.6]} 19... Rae8 {[%clk 0:03:04.9]} 20. Rxe8 {[%clk 0:03:39.4]} 20... Qxe8
{[%clk 0:02:57.7]} 21. Be3 {[%clk 0:03:37.7]} 21... d4 {[%clk 0:02:54.1]} 22.
Bd2 {[%clk 0:03:33.9]} 22... Qf7 {[%clk 0:02:46.7]} 23. Qe2 {[%clk 0:03:31.3]}
23... Nf6 {[%clk 0:02:44.2]} 24. Re1 {[%clk 0:03:29]} 24... Re8 {[%clk
0:02:34.2]} 25. Qf1 {[%clk 0:03:26.5]} 25... Ng4 {[%clk 0:02:21.4]} 26. Rxe8+
{[%clk 0:03:22.6]} 26... Qxe8 {[%clk 0:02:20]} 27. Qe1 {[%clk 0:03:21.5]} 27...
Qxe1+ {[%clk 0:02:05.4]} 28. Bxe1 {[%clk 0:03:21.4]} 28... Kf7 {[%clk
0:02:01.7]} 29. Kg2 {[%clk 0:03:20.7]} 29... Ne5 {[%clk 0:01:58.3]} 30. f4
{[%clk 0:03:15.2]} 30... Ng4 {[%clk 0:01:54.1]} 31. Bd2 {[%clk 0:03:07.1]} 31...
b5 {[%clk 0:01:49.4]} 32. Kf3 {[%clk 0:03:04.7]} 32... h5 {[%clk 0:01:45.3]} 33.
Ke4 {[%clk 0:02:50]} 33... Ke6 {[%clk 0:01:39]} 34. f5+ {[%clk 0:02:48.4]} 34...
Kd6 {[%clk 0:01:31.1]} 35. Bf4+ {[%clk 0:02:45.9]} 35... Ke7 {[%clk 0:01:25.5]}
36. Kd5 {[%clk 0:02:16.6]} 36... Ne3+ {[%clk 0:01:22.8]} 37. Kxc5 {[%clk
0:02:15.8]} 37... Nxc2 {[%clk 0:01:17.5]} 38. Be5 {[%clk 0:02:13.9]} 38... Kf7
{[%clk 0:01:02.4]} 39. Bxd4 {[%clk 0:02:11.7]} 39... g6 {[%clk 0:00:48.1]} 40.
fxg6+ {[%clk 0:02:09.4]} 40... Kxg6 {[%clk 0:00:47]} 41. Be5 {[%clk 0:02:09.2]}
41... Kf5 {[%clk 0:00:44.9]} 42. Bf4 {[%clk 0:02:06.5]} 42... Ke6 {[%clk
0:00:42]} 43. d4 {[%clk 0:02:05.6]} 43... Kd7 {[%clk 0:00:36.9]} 44. d5 {[%clk
0:02:05.1]} 44... Ne1 {[%clk 0:00:31.7]} 45. Kb6 {[%clk 0:02:03.1]} 45... Nd3
{[%clk 0:00:28.7]} 46. Kxa6 {[%clk 0:01:58]} 46... b4 {[%clk 0:00:21.4]} 47. Kb5
{[%clk 0:01:56]} 47... Nxb2 {[%clk 0:00:13.8]} 48. Kxb4 {[%clk 0:01:54.5]} 48...
Nd3+ {[%clk 0:00:12.4]} 49. Kc4 {[%clk 0:01:54]} 49... Nxf4 {[%clk 0:00:07.1]}
50. gxf4 {[%clk 0:01:53.9]} 50... Kd6 {[%clk 0:00:06.1]} 51. Kd4 {[%clk
0:01:53.7]} 51... Kd7 {[%clk 0:00:04.7]} 52. Ke5 {[%clk 0:01:53.6]} 52... Kd8
{[%clk 0:00:02.6]} 53. f5 {[%clk 0:01:53.5]} 53... Kd7 {[%clk 0:00:01.4]} 54. f6
{[%clk 0:01:52.3]} 1-0